bitfinex-derivatives/quotes_ETHF0:USTF0_20251006
["timestamp","ask_amount","ask_price","bid_price","bid_amount"]
[1759737625164,0.00186436,4537.5,4537.4,4.2045]
[1759737629665,0.00186436,4537.5,4537.4,9.2045]
[1759737629865,0.00186436,4537.5,4537.4,50.0045]
[1759737630262,0.022,4537.9,4537.4,50.66003]
[1759737630469,0.022,4537.9,4537.8,1.17224]
[1759737630669,0.022,4537.9,4537.8,1.39324]
[1759737631268,0.02432101,4537.9,4537.8,42.19607684]
[1759737631965,3.7396,4539.3,4538.1,0.3359]
[1759737632165,3.7396,4539.3,4539.2,1.17212]
[1759737632367,3.9529,4539.3,4539.2,1.17212]
[1759737632562,3.2078,4539.3,4539.2,1.17212]
[1759737632869,3.7412194,4539.3,4539.2,41.97212]
[1759737633472,3.5242194,4539.3,4539.2,41.97212]
[1759737634264,3.5242194,4539.3,4539.2,41.5757]
[1759737634964,0.3164194,4539.3,4539.2,41.5757]
[1759737637767,0.0016194,4539.3,4539.2,41.7967]
[1759737639865,0.0016194,4539.3,4539.2,41.5757]
[1759737640177,0.0016194,4539.3,4539.2,41.7967]
[1759737641277,0.0016194,4539.3,4539.2,41.5757]
[1759737641476,0.0016194,4539.3,4539.2,41.7967]
[1759737644769,0.0016194,4539.3,4539.2,41.5757]
[1759737644973,0.0016194,4539.3,4539.2,41.7967]
[1759737645377,0.0016194,4539.3,4539.2,41.5757]
[1759737645576,0.0016194,4539.3,4539.2,41.7967]
[1759737646182,0.0016194,4539.3,4539.2,41.5757]
[1759737646374,0.0016194,4539.3,4539.2,41.7967]
[1759737647178,0.868,4540.5,4540.4,0.2195]
[1759737647686,0.868,4540.5,4540.4,0.4282]
[1759737647871,0.7401,4540.5,4540.4,0.7555]
[1759737648281,0.74220532,4540.5,4540.4,41.5555]
[1759737648880,0.53720532,4540.5,4540.4,41.5555]
[1759737650084,0.00210532,4540.5,4540.4,41.7765]
[1759737651084,0.33710532,4540.5,4540.4,41.7765]
[1759737651988,0.33710532,4540.5,4540.4,41.5555]
[1759737652287,0.33710532,4540.5,4540.4,41.7765]
[1759737652783,3.2078,4541.4,4541.3,0.4247]
[1759737652985,3.426,4541.4,4541.3,0.752]
[1759737653488,3.761,4541.4,4541.3,0.752]
[1759737653786,3.76383609,4541.4,4541.3,0.75469017]
[1759737653987,3.98803609,4541.4,4541.3,0.75469017]
[1759737654187,0.78023609,4541.4,4541.3,0.75469017]
[1759737655489,0.55603609,4541.4,4541.3,0.75469017]
[1759737655691,0.00283609,4541.4,4541.3,0.97569017]
[1759737656185,0.00283609,4541.4,4541.3,41.77569017]
[1759737656882,0.00283609,4541.4,4541.3,44.98349017]
[1759737658889,0.33783609,4541.4,4541.3,45.15873017]
[1759737659095,0.33783609,4541.4,4541.3,41.22739017]
[1759737659386,0.33783609,4541.4,4541.3,41.44839017]
[1759737659591,0.33783609,4541.4,4541.3,41.77569017]
[1759737659995,0.33783609,4541.4,4541.3,41.44839017]
[1759737660488,0.00283609,4541.4,4541.3,41.77569017]
[1759737660690,0.00283609,4541.4,4541.3,44.98349017]
[1759737661690,0.33783609,4541.4,4541.3,45.0053669]
[1759737662590,3.3406,4542.5,4541.3,45.0053669]
[1759737662591,0.335,4542.1,4541.3,45.0053669]
[1759737662795,0.5532,4542.1,4542.0,1.14818]
[1759737663293,0.7774,4542.1,4542.0,1.14818]
[1759737663792,0.7800254,4542.1,4542.0,0.44657673]
[1759737664796,0.7800254,4542.1,4542.0,0.02187673]
[1759737665894,5.7800254,4542.1,4542.0,0.02187673]
[1759737666095,0.692,4541.5,4541.4,0.2152]
[1759737666294,0.9102,4541.5,4541.4,0.752]
[1759737666694,0.9102,4541.5,4541.4,0.4247]
[1759737667292,0.2182,4541.8,4541.7,0.4247]
[1759737667496,0.7774,4541.8,4541.7,1.1482]
[1759737668595,0.9102,4541.5,4541.4,0.7917]
[1759737669794,6.1312,4541.5,4541.4,0.7917]
[1759737669992,0.7774,4540.7,4540.6,0.2152]
[1759737670199,0.5532,4540.7,4540.6,0.752]
[1759737670889,0.5532,4540.7,4540.6,0.75417392]
[1759737671597,0.7774,4540.7,4540.6,0.75417392]
[1759737671889,0.7774,4540.7,4540.6,0.64787392]
[1759737672095,0.5532,4540.9,4540.7,0.39629]
[1759737672290,0.5532,4540.9,4540.8,0.752]
[1759737672982,0.7774,4541.4,4541.3,1.14824]
[1759737673186,0.7774,4541.4,4541.3,0.752]
[1759737673797,0.7774,4541.4,4541.3,0.4247]
[1759737674195,1.17363,4541.4,4541.1,0.39625]
[1759737674493,0.7774,4540.9,4540.6,0.00217392]
[1759737674699,0.4424,4540.7,4540.6,0.00217392]
[1759737674894,0.7774,4540.7,4540.6,0.00217392]
[1759737675094,3.9852,4540.7,4540.6,0.00217392]
[1759737675793,0.7774,4540.7,4540.6,1.15047392]
[1759737676000,0.7774,4540.7,4540.6,0.42687392]
[1759737676197,0.7774,4540.7,4540.6,0.21737392]
[1759737676698,0.7774,4540.7,4540.6,0.00217392]
[1759737677695,0.7774,4540.7,4540.6,0.42687392]
[1759737677901,0.7774,4540.7,4540.6,0.00217392]
[1759737678202,5.7774,4540.7,4540.6,0.00217392]
[1759737679601,0.7774,4540.7,4540.6,0.00217392]
[1759737680298,0.7774,4540.7,4540.6,0.22367392]
[1759737680501,0.5532,4540.7,4540.6,0.74317392]
[1759737680702,0.7688,4540.7,4540.6,0.74317392]
[1759737681003,0.7688,4540.7,4540.6,0.22367392]
[1759737681304,0.7688,4540.7,4540.6,0.00217392]
[1759737684403,0.7688,4540.7,4540.6,0.22367392]
[1759737684600,0.7688,4540.7,4540.6,0.74317392]
[1759737684801,0.5532,4540.7,4540.6,0.74317392]
[1759737685406,0.221,4541.0,4540.9,0.4259]
[1759737685605,1.1124,4541.0,4540.9,0.4259]
[1759737686201,1.1124,4541.0,4540.9,0.82217]
[1759737686805,1.1124,4541.0,4540.9,0.61777]
[1759737687705,1.1124,4541.0,4540.8,0.39628]
[1759737690606,0.7792,4541.0,4540.7,1.0621]
[1759737690809,3.9677,4540.9,4540.8,0.39628]
[1759737691012,3.541,4540.9,4540.7,1.45839]
[1759737691205,0.7599,4540.8,4540.7,1.45839]
[1759737691512,0.7599,4540.8,4540.7,0.39629]
[1759737692907,0.7599,4540.8,4540.7,0.61779]
[1759737693606,0.9809,4540.8,4540.7,0.61779]
[1759737694001,0.9809,4540.8,4540.7,1.13729]
[1759737696606,3.2078,4541.6,4541.5,0.3288]
[1759737696912,3.8549,4541.6,4541.4,0.39622]
[1759737697411,3.8549,4541.6,4541.4,0.72502]
[1759737697611,3.8549,4541.6,4541.5,0.5504]
[1759737697799,3.8549,4541.6,4541.5,0.3288]
[1759737698509,4.1898,4541.6,4541.5,0.3288]
[1759737698708,4.1898,4541.6,4541.5,0.5504]
[1759737698908,4.1898,4541.6,4541.5,0.909]
[1759737699105,3.8549,4541.6,4541.5,0.909]
[1759737699305,3.6484,4541.6,4541.5,0.909]
[1759737699509,3.8549,4541.6,4541.5,0.909]
[1759737699908,4.1898,4541.6,4541.5,0.909]
[1759737700919,0.982,4541.6,4541.5,0.909]
[1759737701119,0.982,4541.6,4541.5,0.5504]
[1759737701318,0.982,4541.6,4541.4,0.39622]
[1759737701620,0.761,4541.5,4541.4,0.94662]
[1759737702215,0.4261,4541.5,4541.4,1.16992]
[1759737704919,0.4261,4541.5,4541.4,0.94662]
[1759737705121,0.4261,4541.5,4541.4,1.16992]
[1759737705823,0.2196,4541.5,4541.4,1.16992]
[1759737706219,0.221,4541.6,4541.4,1.16992]
[1759737706220,0.221,4541.6,4541.5,0.1353]
[1759737706420,0.4406,4541.6,4541.5,0.909]
[1759737707423,0.2196,4541.6,4541.5,0.909]
[1759737708518,0.7348,4541.6,4541.5,0.909]
[1759737708721,0.742,4541.2,4541.1,0.5338]
[1759737708923,0.2221,4541.2,4541.1,1.14676]
[1759737709523,0.742,4541.2,4541.1,1.14676]
[1759737709722,0.742,4541.2,4541.1,0.70476]
[1759737710116,0.742,4541.2,4541.1,0.93006]
[1759737710320,0.742,4541.2,4541.1,0.39626]
[1759737710930,0.742,4541.2,4541.1,0.93006]
[1759737711521,0.4333,4541.2,4541.1,1.14676]
[1759737714429,0.221,4541.4,4541.3,0.39624]
[1759737714629,0.6543,4541.4,4541.3,1.14674]
[1759737714834,0.221,4541.4,4541.3,1.14674]
[1759737715728,0.4431,4541.4,4541.3,1.14674]
[1759737715934,0.963,4541.8,4541.7,0.93]
[1759737716135,0.6543,4541.8,4541.7,1.1467]
[1759737717337,0.963,4541.8,4541.7,1.1467]
[1759737717537,0.6543,4541.8,4541.7,1.1467]
[1759737718437,0.6543,4541.8,4541.7,2.0549]
[1759737719437,0.4431,4541.8,4541.7,2.0549]
[1759737719630,0.221,4541.8,4541.7,2.0549]
[1759737720331,0.0026254,4542.1,4541.7,2.0549]
[1759737720332,0.0026254,4542.1,4542.0,0.97068]
[1759737720534,0.0026254,4542.1,4542.0,1.27918]
[1759737721330,0.2247254,4542.1,4542.0,0.883]
[1759737721535,0.9656254,4542.1,4542.0,0.883]
[1759737721837,0.6569254,4542.1,4542.0,0.883]
[1759737724139,0.4457254,4542.1,4542.0,0.883]
[1759737724441,0.2236254,4542.1,4542.0,0.883]
[1759737725339,0.0026254,4542.1,4542.0,0.883]
[1759737729643,0.0026254,4542.1,4542.0,4.0908]
[1759737730238,3.2078,4542.7,4542.6,0.39612]
[1759737730446,3.2078,4542.7,4542.6,1.14662]
[1759737731138,0.022,4542.9,4542.6,1.14662]
[1759737731345,0.02458093,4542.9,4542.8,1.14661]
[1759737735448,0.02458093,4542.9,4542.8,41.94661]
[1759737738750,0.33608093,4542.9,4542.8,41.94661]
[1759737739052,0.23228093,4542.9,4542.8,1.14661]
[1759737739252,0.02458093,4542.9,4542.8,1.14661]
[1759737741257,3.2078,4543.9,4543.8,0.434]
[1759737741550,3.4155,4543.9,4543.8,0.7731]
[1759737742349,3.41825017,4543.9,4543.8,0.77496868]
[1759737743451,3.21055017,4543.9,4543.8,0.77496868]
[1759737744352,3.41825017,4543.9,4543.8,0.77496868]
[1759737744947,3.95235017,4543.9,4543.8,0.77496868]
[1759737745147,3.64085017,4543.9,4543.8,0.77496868]
[1759737748154,3.41825017,4543.9,4543.8,0.77496868]
[1759737749850,3.21055017,4543.9,4543.8,0.77496868]
[1759737750155,3.41825017,4543.9,4543.8,0.77496868]
[1759737750352,3.95235017,4543.9,4543.8,0.77496868]
[1759737750551,3.64085017,4543.9,4543.8,0.77496868]
[1759737751260,3.21055017,4543.9,4543.8,0.77496868]
[1759737752356,0.43305017,4543.9,4543.8,0.77496868]
[1759737754956,0.00275017,4543.9,4543.8,0.77496868]
[1759737755155,0.74455017,4543.9,4543.8,0.77496868]
[1759737755653,0.43305017,4543.9,4543.8,0.77496868]
[1759737755846,0.74455017,4543.9,4543.8,1.56636868]
[1759737756047,0.74455017,4543.9,4543.8,0.79326868]
[1759737756257,3.95235017,4543.9,4543.8,0.79326868]
[1759737756763,8.95235017,4543.9,4543.8,0.79326868]
[1759737757360,9.17335017,4543.9,4543.8,0.79326868]
[1759737757651,3.65395017,4543.9,4543.8,1.52576868]
[1759737757858,3.96565017,4543.9,4543.8,1.52576868]
[1759737758056,3.96565017,4543.9,4543.8,1.31336868]
[1759737758359,3.65395017,4543.9,4543.8,1.52576868]
[1759737758658,3.43205017,4543.9,4543.8,1.52576868]
[1759737758862,3.96565017,4543.9,4543.8,1.52576868]
[1759737759055,3.96565017,4543.9,4543.8,1.31336868]
[1759737759362,3.96565017,4543.9,4543.8,1.09906868]
[1759737760362,3.96565017,4543.9,4543.8,1.31336868]
[1759737760557,3.96565017,4543.9,4543.8,1.52576868]
[1759737762160,3.65395017,4543.9,4543.8,1.52576868]
[1759737762350,0.44615017,4543.9,4543.8,1.52576868]
[1759737762656,0.00275017,4543.9,4543.8,1.52576868]
[1759737763556,0.7551,4545.0,4544.9,0.91602]
[1759737763863,0.9761,4545.0,4544.9,0.91602]
[1759737764053,0.9761,4545.0,4544.9,0.70172]
[1759737764255,0.3117,4544.9,4544.8,0.39593]
[1759737764456,3.96518591,4544.9,4544.8,0.39593]
[1759737768460,3.96518591,4544.9,4544.5,0.4354]
[1759737768461,0.39595,4544.6,4544.5,0.3058]
[1759737768761,0.4463,4544.1,4544.0,1.2613]
[1759737768959,3.21008591,4544.9,4544.0,0.8653]
[1759737768960,0.3103,4544.4,4544.0,0.8653]
[1759737769163,0.4453,4544.5,4544.4,0.7357]
[1759737769364,0.4453,4544.5,4544.4,1.13167]
[1759737770365,0.9776,4544.5,4544.4,1.13167]
[1759737771265,0.4453,4544.5,4544.4,1.13167]
[1759737772262,0.2243,4544.8,4544.7,0.39594]
[1759737772570,3.21008591,4544.9,4544.8,0.4273]
[1759737772863,3.21008591,4544.9,4544.8,0.7357]
[1759737773861,0.00228591,4544.9,4544.8,0.7357]
[1759737774068,0.22658591,4544.9,4544.8,0.7357]
[1759737774570,0.22658591,4544.9,4544.8,1.5018]
[1759737776468,0.00228591,4544.9,4544.8,1.5018]
[1759737777067,0.00228591,4544.9,4544.8,1.7228]
[1759737777270,4.0154,4546.0,4545.9,1.13154]
[1759737777564,3.7051,4546.0,4545.9,1.13154]
[1759737778368,0.1001,4548.5,4547.1,0.5165]
[1759737778569,0.4463,4547.6,4547.5,3.2078]
[1759737778767,0.4463,4547.3,4547.2,0.70412]
[1759737779169,0.4481095,4547.3,4547.2,0.91418862]
[1759737779363,0.4481095,4547.3,4547.2,1.13338862]
[1759737780268,0.7584095,4547.3,4547.2,1.13338862]
[1759737780870,0.2261095,4547.3,4547.2,1.13338862]
[1759737781072,0.0018095,4547.3,4547.2,1.13338862]
[1759737783979,0.7584095,4547.3,4547.2,1.35438862]
[1759737784170,0.7584095,4547.3,4547.2,0.73766862]
[1759737784375,0.4481095,4547.3,4547.2,0.73766862]
[1759737784676,0.7584095,4547.3,4547.2,0.73766862]
[1759737786280,0.7584095,4547.3,4547.2,0.95866862]
[1759737786473,0.7584095,4547.3,4547.2,0.73766862]
[1759737786982,0.7584095,4547.3,4547.2,0.00196862]
[1759737789282,0.7584095,4547.3,4547.2,0.65446862]
[1759737789484,0.7584095,4547.3,4547.2,1.17096862]
[1759737789782,0.7584095,4547.3,4547.2,0.86256862]
[1759737790175,0.7584095,4547.3,4547.2,1.17096862]
[1759737792285,0.0018095,4547.3,4547.2,1.39016862]
[1759737792477,0.4463,4548.3,4548.2,0.82294]
[1759737792678,3.9644,4548.8,4548.7,1.13129]
[1759737792972,0.7566,4548.8,4548.7,1.13129]
[1759737793580,0.00206585,4548.8,4548.7,4.33909]
[1759737794180,0.22636585,4548.8,4548.7,4.33909]
[1759737794382,0.44836585,4548.8,4548.7,4.33909]
[1759737794688,0.75866585,4548.8,4548.7,4.33909]
[1759737794880,0.75866585,4548.8,4548.7,4.55909]
[1759737795384,0.75866585,4548.8,4548.7,4.33909]
[1759737795880,0.75866585,4548.8,4548.7,4.55909]
[1759737796081,0.75866585,4548.8,4548.7,4.33909]
[1759737796384,0.75866585,4548.8,4548.7,4.55909]
[1759737797091,0.22636585,4548.8,4548.7,4.55909]
[1759737797476,0.44836585,4548.8,4548.7,4.55909]
[1759737797680,0.22636585,4548.8,4548.7,4.55909]
[1759737797880,0.00206585,4548.8,4548.7,4.55909]
[1759737798487,0.00206585,4548.8,4548.7,4.33909]
[1759737798792,0.7669,4550.1,4550.0,0.61038]
[1759737799091,0.7669,4550.1,4550.0,0.39548]
[1759737799382,0.4287,4549.1,4549.0,0.2149]
[1759737799588,0.7669,4549.1,4549.0,0.5494]
[1759737799791,0.43101385,4549.1,4549.0,0.8868]
[1759737800675,0.76921385,4549.1,4549.0,0.8868]
[1759737801983,0.76921385,4549.1,4548.9,3.2078]
[1759737802188,0.17439448,4551.6,4549.0,8.2078]
[1759737802384,3.2078,4552.2,4551.6,0.3345]
[1759737802584,0.39541,4550.9,4550.5,0.123]
[1759737802886,0.22,4551.0,4549.9,3.60329]
[1759737803087,0.39547,4550.2,4549.9,3.2078]
[1759737803288,0.22,4550.2,4549.9,0.39548]
[1759737803483,0.22203259,4550.2,4550.0,0.73564926]
[1759737804591,0.22203259,4550.2,4550.1,0.5494]
[1759737804783,0.22203259,4550.2,4550.1,0.7638]
[1759737805293,0.00203259,4550.2,4550.1,3.9716]
[1759737807391,0.00203259,4550.2,4550.1,8.9716]
[1759737809195,0.39534,4551.7,4551.0,0.3379]
[1759737809495,3.2078,4551.9,4551.5,0.6724]
[1759737809496,0.22,4551.6,4551.5,0.6724]
[1759737810292,0.22197151,4551.6,4551.5,0.6724]
[1759737811594,0.22197151,4551.6,4551.5,0.8868]
[1759737818896,5.22197151,4551.6,4551.5,0.6724]
[1759737819097,5.22197151,4551.6,4551.5,0.04477787]
[1759737820196,0.1184,4551.3,4551.0,0.123]
[1759737820398,0.55083,4550.6,4550.5,0.123]
[1759737820599,0.3384,4550.6,4550.5,0.3342]
[1759737820800,0.3384,4550.6,4550.5,0.8651]
[1759737821401,0.3384,4550.6,4550.5,0.6446]
[1759737821402,5.3384,4550.6,4550.5,0.6446]
[1759737821806,5.3384,4550.6,4550.5,0.3104]
[1759737821807,5.3754,4550.6,4550.5,0.3104]
[1759737822104,0.51387,4550.1,4550.0,0.64407926]
[1759737822299,0.73387,4550.1,4550.0,0.86457926]
[1759737823897,0.73387,4550.1,4550.0,0.64407926]
[1759737824094,0.77087,4550.1,4550.0,0.43567926]
[1759737824494,0.77087,4550.1,4550.0,1.26817926]
[1759737825104,5.77087,4550.1,4550.0,0.83477926]
[1759737825307,5.77087,4550.1,4549.5,0.1258]
[1759737825308,0.90522,4549.6,4549.5,0.3104]
[1759737825494,1.12522,4549.6,4549.5,0.3104]
[1759737826404,9.33302,4549.6,4549.5,0.00238162]
[1759737826601,0.39558,4548.8,4548.7,0.3104]
[1759737826906,0.39558,4548.8,4548.3,0.3104]
[1759737826907,0.78402,4548.4,4548.3,0.3104]
[1759737827309,0.90532,4548.4,4548.3,0.3104]
[1759737827501,0.78405,4548.1,4548.0,0.1258]
[1759737827702,1.00405,4548.1,4548.0,0.43820723]
[1759737828098,1.12675,4548.1,4548.0,0.43820723]
[1759737828704,6.12675,4548.1,4548.0,0.00200723]
[1759737831612,9.33455,4548.1,4548.0,0.00200723]
[1759737834611,9.33455,4548.1,4548.0,0.78270723]
[1759737835406,9.33455,4548.1,4548.0,1e-08]
[1759737836411,9.33455,4548.1,4548.0,0.00169739]
[1759737837008,0.3926,4547.7,4547.6,1.0]
[1759737837215,0.91103,4547.1,4547.0,0.6888]
[1759737837513,1.00833,4547.1,4547.0,0.6888]
[1759737838010,1.00833,4547.1,4547.0,0.69145801]
[1759737838213,1.00833,4547.1,4547.0,0.90095801]
[1759737839108,0.81203,4547.1,4547.0,0.90095801]
[1759737839302,0.4163,4547.1,4547.0,0.90095801]
[1759737839506,3.2078,4547.8,4547.7,0.7725]
[1759737839705,3.4278,4547.8,4547.7,0.7725]
[1759737840706,3.6241,4547.8,4547.7,0.7725]
[1759737840916,3.8204,4547.8,4547.7,0.7725]
[1759737841406,3.8204,4547.8,4547.7,0.563]
[1759737841607,0.5153,4547.6,4547.5,0.465]
[1759737841807,0.39568,4547.7,4547.5,0.8982]
[1759737842004,0.78824,4548.2,4548.1,0.563]
[1759737842308,1.00824,4548.2,4548.1,0.563]
[1759737845613,3.2078,4548.3,4548.2,0.3393]
[1759737845917,3.6241,4548.3,4548.2,0.7725]
[1759737846312,3.4041,4548.3,4548.2,0.7725]
[1759737846518,3.6241,4548.3,4548.2,0.7725]
[1759737847016,3.2078,4548.3,4548.2,1.16814]
[1759737847319,3.4278,4548.3,4548.2,0.7725]
[1759737847512,3.6241,4548.3,4548.2,0.7725]
[1759737847715,3.8204,4548.3,4548.2,0.563]
[1759737848211,3.9431,4548.3,4548.2,0.3393]
[1759737848712,0.3926,4548.1,4548.0,0.465]
[1759737848911,0.7353,4548.1,4548.0,0.465]
[1759737849114,0.4163,4548.1,4548.0,0.8982]
[1759737849716,0.22,4548.1,4548.0,0.8982]
[1759737850118,0.00270965,4548.4,4548.2,1.16813]
[1759737850311,0.00270965,4548.4,4548.3,0.7725]
[1759737850710,0.22270965,4548.4,4548.3,0.7725]
[1759737851518,0.00270965,4548.4,4548.3,0.7725]
[1759737851821,0.22270965,4548.4,4548.3,0.7725]
[1759737852512,0.00270965,4548.4,4548.3,0.7725]
[1759737852718,0.61530965,4548.4,4548.3,0.7725]
[1759737852912,0.39530965,4548.4,4548.3,0.7725]
[1759737853219,0.41900965,4548.4,4548.3,0.7725]
[1759737853511,0.61530965,4548.4,4548.3,0.3393]
[1759737853707,0.73800965,4548.4,4548.3,0.3393]
[1759737857021,0.61530965,4548.4,4548.3,0.563]
[1759737857417,0.61530965,4548.4,4548.3,0.7725]
[1759737858821,3.49912762,4548.4,4548.3,0.7725]
[1759737860421,3.10652762,4548.4,4548.3,0.7725]
[1759737861026,4.77671492,4548.4,4548.3,0.7725]
[1759737861623,4.97141492,4548.4,4548.3,0.7725]
[1759737862119,4.75694718,4548.4,4548.3,0.7725]
[1759737863016,4.95399507,4548.4,4548.3,0.563]
[1759737863218,5.07569507,4548.4,4548.3,0.563]
[1759737863626,4.95399507,4548.4,4548.3,0.563]
[1759737864928,5.07569507,4548.4,4548.3,0.563]
[1759737865627,5.07569507,4548.4,4548.3,0.3393]
[1759737865828,4.95399507,4548.4,4548.3,0.551]
[1759737866224,4.95399507,4548.4,4548.3,0.7579]
[1759737866431,4.56459507,4548.4,4548.3,0.7579]
[1759737866626,4.34459507,4548.4,4548.3,0.7579]
[1759737866825,4.56459507,4548.4,4548.3,0.7579]
[1759737867024,3.37677424,4548.4,4548.3,0.7579]
[1759737868227,3.57147424,4548.4,4548.3,0.7579]
[1759737868633,3.15677424,4548.4,4548.3,1.15353]
[1759737868831,3.37677424,4548.4,4548.3,1.15353]
[1759737869221,3.37677424,4548.4,4548.3,0.7579]
[1759737870131,3.76617424,4548.4,4548.3,0.7579]
[1759737871232,0.90675,4548.1,4548.0,1.2498]
[1759737871434,1.60911647,4548.1,4548.0,1.2498]
[1759737871629,4.33908455,4548.1,4548.0,0.6759]
[1759737872830,4.46078455,4548.1,4548.0,0.4642]
[1759737873037,4.33908455,4548.1,4548.0,0.6759]
[1759737873937,0.78566,4547.9,4547.8,1.0314]
[1759737874136,1.60992647,4547.9,4547.8,1.0314]
[1759737874434,4.49497697,4547.9,4547.8,1.0314]
[1759737874631,4.49497697,4547.9,4547.8,0.7248]
[1759737874837,5.68255648,4547.9,4547.8,0.7248]
[1759737875225,0.7857,4547.5,4547.4,0.3066]
[1759737875431,1.60996647,4547.5,4547.4,0.3066]
[1759737875728,0.5119,4547.4,4547.3,1.2811]
[1759737875928,0.87236647,4547.4,4547.3,1.4907]
[1759737876135,3.77888265,4547.4,4547.3,0.5162]
[1759737876337,3.90078265,4547.4,4547.3,0.3066]
[1759737877139,3.77888265,4547.4,4547.3,0.5162]
[1759737881638,0.5119,4547.2,4547.1,1.9443]
[1759737881842,1.21426647,4547.2,4547.1,1.9443]
[1759737882037,4.07871302,4547.2,4547.1,0.3066]
[1759737884436,0.90763,4547.1,4547.0,0.00265801]
[1759737884635,1.38999647,4547.1,4547.0,0.30925801]
[1759737884836,4.20872142,4547.1,4547.0,0.30925801]
[1759737885138,4.20872142,4547.1,4547.0,0.43685801]
[1759737885437,4.20872142,4547.1,4547.0,0.64645801]
[1759737885737,3.2078,4547.8,4547.7,1.12858]
[1759737886036,3.41294264,4547.8,4547.1,0.3066]
[1759737886239,0.5119,4547.1,4547.0,0.00265801]
[1759737886438,0.94354,4547.0,4546.9,1.5795]
[1759737886742,0.39582,4546.1,4546.0,0.4342]
[1759737886940,3.82362,4546.1,4546.0,0.4342]
[1759737887137,6.32995068,4546.1,4545.6,0.3066]
[1759737887343,0.39585,4545.7,4545.6,0.3066]
[1759737887541,0.61585,4545.7,4545.6,0.30901731]
[1759737887742,3.51800068,4545.7,4545.6,0.30901731]
[1759737888332,3.51800068,4545.7,4545.6,0.52181731]
[1759737895852,3.51800068,4545.7,4545.6,0.72631731]
[1759737896047,2.90215068,4545.7,4545.6,4.32997731]
[1759737896253,3.2078,4547.0,4546.9,0.7527]
[1759737896254,0.7796,4547.0,4546.9,0.7527]
[1759737896453,0.9996,4547.0,4546.9,0.7527]
[1759737897148,0.6689,4547.0,4546.9,0.7527]
[1759737898244,1.14350194,4547.0,4546.9,0.7527]
[1759737898745,0.92350194,4547.0,4546.9,0.7527]
[1759737898946,0.6689,4547.0,4546.9,0.7527]
[1759737899252,4.38309,4547.6,4547.5,0.7527]
[1759737899461,4.38309,4547.6,4547.5,0.8791]
[1759737899462,4.6820899,4547.6,4547.5,0.8791]
[1759737899754,7.5999957,4547.6,4547.5,0.8791]
[1759737900054,7.5999957,4547.6,4547.5,0.7527]
[1759737900253,6.6003957,4547.6,4547.5,0.8791]
[1759737900548,3.4324,4548.2,4548.1,0.7527]
[1759737900748,3.68253448,4548.2,4548.1,1.14835]
[1759737901050,3.68253448,4548.2,4548.1,6.14835]
[1759737901051,3.2078,4548.2,4548.1,6.14835]
[1759737901355,0.22,4548.2,4548.1,6.14835]
[1759737903848,3.5385,4549.2,4548.3,1.14833]
[1759737904054,0.22234789,4548.4,4548.3,1.14833]
[1759737904558,0.22234789,4548.4,4548.3,6.14833]
[1759737906449,1.00194789,4548.4,4548.3,0.7527]
[1759737906857,3.85162175,4548.4,4548.3,0.5482]
[1759737907654,0.00234789,4548.4,4548.3,6.14833]
[1759737912858,0.00234789,4548.4,4548.3,1.14833]
[1759737913058,0.22,4548.6,4548.5,0.93931]
[1759737913361,0.22,4548.6,4548.5,4.48251]
[1759737914154,0.22232526,4548.6,4548.5,4.48251]
[1759737914859,0.00232526,4548.6,4548.5,4.48251]
[1759737930367,0.47660654,4548.6,4548.5,4.48251]
[1759737936272,1.18467178,4549.8,4549.5,0.8792]
[1759737936475,0.81981,4549.7,4549.6,0.7456]
[1759737936677,0.4174,4549.5,4549.4,0.2112]
[1759737936870,0.3362,4549.4,4548.6,0.3224]
[1759737937069,0.2043,4548.7,4548.6,0.7456]
[1759737937379,0.20708248,4548.7,4548.6,0.74714436]
[1759737937580,0.00278248,4548.7,4548.6,0.74714436]
[1759737942683,0.20708248,4548.7,4548.6,0.74714436]
[1759737943278,0.00278248,4548.7,4548.6,0.74714436]
[1759737948383,0.00278248,4548.7,4548.6,5.74714436]
[1759737948681,0.47237856,4548.7,4548.6,5.74714436]
[1759737948878,0.204,4549.5,4549.4,0.4161]
[1759737949180,0.67354351,4549.5,4549.4,4.34123]
[1759737949880,0.67527709,4549.5,4549.4,4.34123]
[1759737953485,0.47127709,4549.5,4549.4,4.34123]
[1759737954487,0.00173358,4549.5,4549.4,4.34123]
[1759737961297,0.2142,4550.6,4550.5,1.25834]
[1759737961493,0.5231,4551.0,4550.9,1.1333]
[1759737961794,0.89947647,4551.0,4550.9,1.1333]
[1759737961999,0.46527647,4551.0,4550.9,1.1333]
[1759737962195,0.00284425,4551.0,4550.9,1.1333]
[1759737962787,0.74984425,4551.0,4550.9,0.7379]
[1759737962990,0.74984425,4551.0,4550.9,0.5297]
[1759737963691,0.74984425,4551.0,4550.9,0.7379]
[1759737965396,1.14523425,4551.0,4550.9,0.5297]
[1759737965600,0.747,4550.7,4550.6,0.71723]
[1759737965797,0.747,4550.7,4550.6,0.5297]
[1759737966197,0.747,4550.7,4550.6,1.4326]
[1759737967410,0.2142,4550.7,4550.6,1.4326]
[1759737967902,0.52594425,4551.0,4550.9,0.7379]
[1759737968103,0.74984425,4551.0,4550.9,0.7379]
[1759737969601,0.96984425,4551.0,4550.9,0.7379]
[1759737970100,1.14242,4550.7,4550.6,0.6947]
[1759737970399,3.96086515,4550.7,4550.6,0.6947]
[1759737970802,9.42507604,4550.7,4550.6,0.6947]
[1759737971498,9.02965604,4550.7,4550.6,0.6947]
[1759737972201,8.56544515,4550.7,4550.6,0.6947]
[1759737972399,9.029732,4550.7,4550.6,0.6947]
[1759737972600,9.029732,4550.7,4550.6,1.5949]
[1759737974301,0.79751,4549.7,4549.6,0.3218]
[1759737974508,1.01751,4549.7,4549.6,0.5297]
[1759737974707,3.85655939,4549.7,4549.6,0.5297]
[1759737975000,3.98215939,4549.7,4549.6,0.5297]
[1759737975308,3.85655939,4549.7,4549.6,0.5297]
[1759737976008,3.46104939,4549.7,4549.6,0.5297]